fUSD/lending_fUSD_20240501
["ID","MTS","AMOUNT","RATE_DAILY","PERIOD"]
[325222178,1714595440657,-155.1537093,0.00025513,2]
[325222179,1714595440666,-207.49945375,0.00025517,2]
[325222180,1714595440675,-1594.86889968,0.00025544,2]
[325222182,1714595440686,-159.0188368,0.00025685,2]
[325222184,1714595440696,-3000.0,0.0002572,2]
[325222186,1714595440705,-414.22,0.0002579,2]
[325222187,1714595440713,-930.48,0.0002579,2]
[325222189,1714595440723,-431.1,0.00025804,3]
[325222192,1714595440734,-394.76093422,0.000259,2]
[325222193,1714595440744,-995.94537766,0.000259,2]
[325222196,1714595440755,-1443.15373313,0.000259,2]
[325222198,1714595440764,-150.66768679,0.00025981,2]
[325222199,1714595440773,-50000.0,0.00026,6]
[325222201,1714595440782,-5602.72190669,0.00026,2]
[325222203,1714595440791,-1638.91109478,0.00026,2]
[325222205,1714595440800,-150.0,0.00026,4]
[325222207,1714595440810,-1594.86889968,0.00026383,2]
[325222209,1714595440819,-150.0,0.00026399,2]
[325222211,1714595440828,-150.0,0.00026475,2]
[325222213,1714595440837,-150.0,0.00026475,2]
[325222216,1714595440847,-300.0,0.00026475,2]
[325222218,1714595440856,-430.42,0.00026475,2]
[325222219,1714595440865,-162.97,0.00026475,2]
[325222221,1714595440875,-415.83,0.00026475,2]
[325222224,1714595440884,-300.0,0.00026475,2]
[325222226,1714595440893,-150.0,0.00026475,2]
[325222228,1714595440902,-350.73,0.00026475,2]
[325222229,1714595440911,-162.97,0.00026475,2]
[325222231,1714595440921,-150.0,0.00026475,2]
[325222233,1714595440930,-162.97,0.00026475,2]
[325222235,1714595440940,-350.73,0.00026475,2]
[325222238,1714595440949,-162.97,0.00026475,2]
[325222240,1714595440959,-350.73,0.00026475,2]
[325222241,1714595440968,-150.0,0.00026475,2]
[325222243,1714595440978,-150.0,0.000265,5]
[325222246,1714595440988,-163.73388053,0.00026645,2]
[325222247,1714595440998,-995.94537766,0.000269,2]
[325222250,1714595441008,-1443.15373313,0.000269,2]
[325222252,1714595441018,-150.0,0.00026952,120]
[325222254,1714595441028,-50000.0,0.00027,7]
[325222256,1714595441038,-155.0,0.00027,4]
[325222258,1714595441048,-3338.71656259,0.00027,2]
[325222260,1714595441058,-1000.0,0.00027,2]
[325222262,1714595441067,-2128.05342766,0.00027,120]
[325222264,1714595441076,-150.0,0.00027,2]
[325222265,1714595441086,-150.0,0.00027,5]
[325222267,1714595441095,-1000.0,0.00027099,2]
[325222269,1714595441104,-1759.43394311,0.000271,2]
[325222271,1714595441113,-50555.48886526,0.00027168,2]
[325222273,1714595441122,-431.1,0.00027198,3]
[325222275,1714595441132,-1594.86889968,0.00027222,2]
[325222277,1714595441140,-162.8,0.00027297,2]
[325222279,1714595441150,-150.0,0.00027297,2]
[325222281,1714595441159,-2688.58,0.00027317,2]
[325222283,1714595441169,-1959.8,0.00027318,15]
[325222285,1714595441178,-300.0,0.00027397,2]
[325222287,1714595441188,-1000.0,0.00027397,2]
[325222289,1714595441197,-150.0,0.00027397,2]
[325222291,1714595441206,-7045.34,0.00027397,10]
[325222293,1714595441216,-5871.12,0.00027397,10]
[325222295,1714595441226,-4892.6,0.00027397,10]
[325222298,1714595441235,-150.0,0.00027399,2]
[325222299,1714595441245,-766.29676761,0.000274,2]
[325222300,1714595441256,-2000.0,0.000274,2]
[325222301,1714595441265,-1000.0,0.000275,2]
[325222302,1714595441274,-150.0,0.000275,5]
[325222303,1714595441283,-153.74346245,0.00027611,2]
[325222304,1714595441292,-363.36,0.00027714,2]
[325222305,1714595441302,-950.0,0.00027714,2]
[325222306,1714595441311,-995.94537766,0.000279,2]
[325222307,1714595441321,-50000.0,0.00028,8]
[325222308,1714595441330,-726.3816311,0.00028,120]
[325222309,1714595441340,-200.0,0.00028,2]
[325222310,1714595441350,-150.0,0.00028,5]
[325222311,1714595441359,-2000.0,0.00028,4]
[325222312,1714595441368,-1594.86889968,0.00028061,2]
[325222313,1714595441378,-400.0,0.0002807,2]
[325222314,1714595441388,-712.15,0.00028107,2]
[325222315,1714595441398,-150.0,0.00028118,2]
[325222316,1714595441407,-1000.0,0.0002815,2]
[325222317,1714595441417,-207.49945371,0.00028331,2]
[325222318,1714595441426,-150.0,0.00028399,2]
[325222319,1714595441435,-166.43933311,0.00028453,2]
[325222320,1714595441445,-1000.0,0.000285,2]
[325222321,1714595441454,-150.0,0.000285,5]
[325222322,1714595441463,-431.1,0.00028593,3]
[325222323,1714595441474,-2688.58,0.00028687,5]
[325222324,1714595441483,-150.66768685,0.00028695,2]
[325222325,1714595441492,-1000.0,0.00028767,2]
[325222326,1714595441503,-211.0,0.0002878,2]
[325222327,1714595441512,-150.0,0.00028785,120]
[325222328,1714595441521,-150.0,0.00028823,2]
[325222329,1714595441531,-150.0,0.00028823,2]
[325222330,1714595441539,-150.0,0.00028823,2]
[325222331,1714595441548,-150.0,0.00028823,2]
[325222332,1714595441558,-150.0,0.00028823,2]
[325222333,1714595441568,-302.64,0.00028823,2]
[325222334,1714595441578,-150.0,0.00028839,2]
[325222335,1714595441587,-995.94537766,0.000289,2]
[325222336,1714595441597,-365.13159352,0.000289,5]
[325222337,1714595441607,-565.72950613,0.000289,2]
[325222338,1714595441616,-201.02497943,0.000289,2]
[325222339,1714595441625,-1594.86889968,0.000289,2]
[325222340,1714595441635,-312.48713108,0.000289,2]
[325222341,1714595441645,-12612.85916216,0.000289,2]
[325222342,1714595441654,-206.02178958,0.000289,2]
[325222343,1714595441667,-419.48,0.00028936,2]
[325222344,1714595441677,-50555.48886526,0.00028941,2]
[325222345,1714595441687,-159.0188368,0.00028989,2]
[325222346,1714595441696,-1212.14093622,0.00028999,15]
[325222347,1714595441708,-1227.24709092,0.00028999,15]
[325222348,1714595441717,-2000.0,0.00028999,2]
[325222349,1714595441726,-828.30440027,0.00029,9]
[325222350,1714595441791,-4006.7037361,0.00029,9]
[325222351,1714595441804,-591.76158241,0.00029,9]
[325222352,1714595441815,-670.20581189,0.00029,9]
[325222353,1714595441827,-6949.49005788,0.00029,9]
[325222354,1714595441839,-2596.15539632,0.00029,9]
[325222355,1714595441904,-25353.29876632,0.00029,9]
[325222356,1714595441943,-739.9595465,0.00029,9]
[325222357,1714595441980,-8264.12070231,0.00029,9]
[325222358,1714595441990,-5080.45712169,0.00029,3]
[325222359,1714595442005,-18577.97442883,0.00029,3]
[325222360,1714595442017,-24306.34166207,0.00029,3]
[325222361,1714595442029,-849.25322051,0.00029,3]
[325222362,1714595442041,-679.48173823,0.00029,3]
[325222363,1714595442052,-2090.6541948,0.00029,3]
[325222364,1714595442064,-5582.52338136,0.00029,3]
[325222365,1714595442080,-2268.25408316,0.00029,3]
[325222394,1714595443327,-1055.0,0.0001551,2]
[325222395,1714595443337,-779.0,0.000165,2]
[325222396,1714595443346,-34823.06576256,0.00029,3]
[325222397,1714595443358,-771.54419565,0.00029,3]
[325222398,1714595443369,-425.6559996,0.00029,3]
[325222399,1714595443381,-265.1286,0.00029,3]
[325222400,1714595443396,-702.8090486,0.00029,3]
[325222401,1714595443423,-597.75696942,0.00029,3]
[325222402,1714595443532,-607.21348402,0.00029,3]
[325222403,1714595443555,-209.64640096,0.00029,3]
[325222404,1714595443567,-2027.91478928,0.00029,3]
[325222405,1714595443579,-989.38431379,0.00029,3]
[325222406,1714595443590,-6711.08569175,0.00029,3]
[325222428,1714595443758,-33407.76020003,0.00029,3]
[325222431,1714595443769,-33205.80003,0.00029,3]
[325222439,1714595443839,-531.14237959,0.00029,3]
[325222441,1714595443850,-4316.5918931,0.00029,3]
[325222443,1714595444602,-207.44215565,0.00025205,2]
[325222444,1714595444612,-210.51005202,0.00025205,2]
[325222445,1714595444627,-1520.16072553,0.00025205,2]
[325222446,1714595444639,-2976.26956648,0.00025205,2]
[325222447,1714595444758,-1145.13973712,0.00025205,2]
[325222448,1714595444768,-3757.797,0.00028,2]
[325222449,1714595444778,-69135.41791993,0.00029,3]
[325222450,1714595444790,-9193.8869666,0.00029,3]
[325222451,1714595444803,-481.2146,0.00029,3]
[325222452,1714595444815,-987.596933,0.00029,3]
[325222453,1714595444827,-464.03,0.00029,3]
[325222478,1714595446336,-200.0,0.0002464,2]
[325222479,1714595446346,-686.9203,0.00029,3]
[325222480,1714595446421,-1706.37423539,0.00029,3]
[325222505,1714596632694,-538.40022231,0.00014745,2]
[325222506,1714596632703,-155.0,0.00014746,2]
[325222507,1714596632713,-1748.77005859,0.00014746,2]
[325222508,1714596632723,-214.23880024,0.00014747,2]
[325222509,1714596632732,-684.71861083,0.00014748,2]
[325222510,1714596632741,-152.79873068,0.00014757,2]
[325222511,1714596632751,-8084.99529868,0.00014761,2]
[325222512,1714596632798,-1770.73643074,0.00014761,2]
[325222513,1714596632810,-2139.97140042,0.00014761,2]
[325222514,1714596632848,-381.73017016,0.00014761,2]
[325222515,1714596632857,-195.23144984,0.0001487,2]
[325222516,1714596632869,-1304.76855016,0.0001487,2]
[325222517,1714596632879,-1000.0,0.00014877,2]
[325222518,1714596632889,-200.0,0.00014915,2]
[325222519,1714596632897,-1085.53,0.00014953,2]
[325222520,1714596632907,-150.0,0.00014982,3]
[325222521,1714596632916,-357.22427774,0.00014998,2]
[325222522,1714596632925,-1434.0,0.00015,2]
[325222523,1714596632934,-617.71050029,0.00015085,2]
[325222524,1714596632946,-2751.0,0.00015086,2]
[325222525,1714596632955,-200.0,0.00015117,2]
[325222526,1714596632966,-250.0,0.00015149,2]
[325222527,1714596632975,-1242.67581309,0.00015249,2]
[325222528,1714596632984,-545.8933463,0.00015249,2]
[325222529,1714596632994,-252.4156307,0.0001525,2]
[325222530,1714596633003,-541.76524172,0.00015251,2]
[325222531,1714596633015,-289.3455407,0.00015251,2]
[325222532,1714596633028,-8870.24873098,0.00015251,2]
[325222533,1714596633045,-2248.99689501,0.00015251,2]
[325222534,1714596633071,-3499.02376926,0.00015251,2]
[325222535,1714596633082,-363.2425254,0.00015251,2]
[325222536,1714596633093,-1836.77399846,0.00015251,2]
[325222537,1714596633105,-3854.0400004,0.00015251,2]
[325222538,1714596633116,-2011.148602,0.00015251,2]
[325222539,1714596633128,-342.93404351,0.00015251,2]
[325222540,1714596633139,-1047.42676983,0.00015251,2]
[325222547,1714596639088,-6391.79999993,0.00015251,2]
[325222551,1714596639115,-8737.7486828,0.00015251,2]
[325222553,1714596639125,-44469.18284429,0.00015251,2]
[325222555,1714596639136,-284.0476727,0.00015251,2]
[325222565,1714596639219,-55246.76948301,0.00015251,2]
[325222568,1714596639237,-500.0,0.00015264,2]
[325222571,1714596639249,-2753.09,0.00015372,2]
[325222573,1714596639258,-152.79873068,0.00015518,2]
[325222575,1714596639268,-400.0,0.00015663,2]
[325222577,1714596639277,-151.77,0.00015831,2]
[325222579,1714596639286,-500.0,0.00015972,2]
[325222581,1714596639296,-500.0,0.00015981,2]
[325222583,1714596639305,-500.0,0.0001599,2]
[325222585,1714596639315,-500.0,0.00015998,2]
[325222587,1714596639325,-500.0,0.00016007,2]
[325222589,1714596639334,-500.0,0.00016016,2]
[325222591,1714596639344,-500.0,0.00016025,2]
[325222593,1714596639354,-500.0,0.00016034,2]
[325222595,1714596639364,-500.0,0.00016042,2]
[325222597,1714596639374,-500.0,0.00016051,2]
[325222599,1714596639383,-500.0,0.0001606,2]
[325222602,1714596639392,-500.0,0.00016069,2]
[325222604,1714596639401,-500.0,0.00016078,2]
[325222606,1714596639411,-500.0,0.00016086,2]
[325222607,1714596639421,-500.0,0.00016095,2]
[325222609,1714596639431,-500.0,0.00016104,2]
[325222612,1714596639441,-500.0,0.00016113,2]
[325222614,1714596639450,-500.0,0.00016122,2]
[325222616,1714596639459,-500.0,0.0001613,2]
[325222618,1714596639469,-500.0,0.00016139,2]
[325222620,1714596639478,-500.0,0.00016148,2]
[325222622,1714596639488,-500.0,0.00016157,2]
[325222624,1714596639497,-500.0,0.00016166,2]
[325222626,1714596639507,-500.0,0.00016174,2]
[325222628,1714596639517,-500.0,0.00016183,2]
[325222630,1714596639526,-500.0,0.00016192,2]
[325222632,1714596639537,-152.79873068,0.00016279,2]
[325222634,1714596639546,-150.0,0.00016346,3]
[325222636,1714596639556,-151.77,0.00016354,2]
[325222638,1714596639566,-1224.55602433,0.000165,2]
[325222640,1714596639575,-151.77,0.00016876,2]
[325222642,1714596639584,-19590.34951232,0.00017,2]
[325222644,1714596639594,-152.79873068,0.0001704,2]
[325222646,1714596639603,-1035.563,0.0001711,2]
[325222648,1714596639612,-150.0,0.0001711,2]
[325222650,1714596639622,-316.78203355,0.00017259,2]
[325222652,1714596639631,-151.77,0.00017399,2]
[325222654,1714596639640,-400.0,0.00017621,2]
[325222657,1714596639649,-150.0,0.0001771,3]
[325222659,1714596639659,-152.79873068,0.00017801,2]
[325222661,1714596639669,-983.34665694,0.0001788,2]
[325222663,1714596639678,-983.34665686,0.00017891,2]
[325222665,1714596639688,-151.77,0.00017921,2]
[325222667,1714596639697,-7297.59,0.00018052,2]
[325222669,1714596639707,-150.66768681,0.00018303,2]
[325222671,1714596639719,-151.77,0.00018444,2]
[325222673,1714596639729,-152.79873068,0.00018561,2]
[325222675,1714596639738,-1469.86,0.00018662,15]
[325222677,1714596639748,-23369.934594,0.00019,5]
[325222679,1714596639758,-150.0,0.00019074,3]
[325222681,1714596639767,-4000.0,0.00019178,2]
[325222683,1714596639777,-152.79873068,0.00019322,2]
[325222685,1714596639786,-165.37,0.00019576,2]
[325222687,1714596639796,-400.0,0.00019579,2]
[325222689,1714596639805,-5173.86583197,0.0002,2]
[325222691,1714596639814,-155.0,0.0002,2]
[325222693,1714596639824,-1768.2555451,0.0002,2]
[325222695,1714596639833,-1258.79778978,0.0002,2]
[325222698,1714596639842,-186.23625891,0.0002,30]
[325222700,1714596639852,-860.17578703,0.0002,2]
[325222702,1714596639861,-6224.87563104,0.0002,2]
[325222704,1714596639870,-626.26256473,0.0002,2]
[325222706,1714596639879,-155.0,0.0002,2]
[325222708,1714596639889,-152.79873068,0.00020083,2]
[325222710,1714596639898,-150.0,0.00020438,3]
[325222712,1714596639907,-167.0,0.0002051,2]
[325222714,1714596639917,-983.34665686,0.00020618,2]
[325222716,1714596639927,-152.79873068,0.00020844,2]
[325222718,1714596639937,-155.0,0.000209,2]
[325222720,1714596639947,-398.71722492,0.000209,2]
[325222722,1714596639960,-398.71722492,0.000209,2]
[325222724,1714596639970,-398.71722492,0.000209,2]
[325222726,1714596639979,-716.17723846,0.00021,2]
[325222728,1714596639990,-398.71722492,0.00021033,2]
[325222730,1714596640001,-167.0,0.00021187,2]
[325222732,1714596640011,-200.0,0.00021493,2]
[325222734,1714596640021,-400.0,0.00021536,2]
[325222736,1714596640034,-152.79873068,0.00021605,2]
[325222739,1714596640044,-164.18,0.00021644,2]
[325222741,1714596640054,-327.02,0.00021644,2]
[325222743,1714596640064,-171.0,0.0002166,11]
[325222745,1714596640073,-7869.43084047,0.00021701,2]
[325222747,1714596640082,-398.71722492,0.00021766,2]
[325222749,1714596640091,-150.0,0.00021802,3]
[325222751,1714596640101,-167.0,0.00021864,2]
[325222753,1714596640110,-6755.06434201,0.000219,2]
[325222755,1714596640120,-767.29676761,0.000219,2]
[325222757,1714596640129,-2000.0,0.00021918,2]
[325222759,1714596640138,-250.0,0.00021918,2]
[325222761,1714596640148,-388.35,0.00022,2]
[325222763,1714596640157,-152.79873068,0.00022366,2]
[325222765,1714596640167,-1469.86,0.00022398,15]
[325222767,1714596640176,-398.71722492,0.000225,2]
[325222770,1714596640185,-167.0,0.00022541,2]
[325222773,1714596640194,-150.66768681,0.00022777,2]
[325222775,1714596640203,-352.0,0.000228,2]
[325222777,1714596640214,-1000.0,0.000228,2]
[325222779,1714596640223,-223.0,0.000228,2]
[325222781,1714596640238,-155.0,0.00023,2]
[325222783,1714596640247,-33946.48701926,0.00023,2]
[325222785,1714596640256,-152.79873068,0.00023127,2]
[325222787,1714596640265,-150.0,0.00023167,3]
[325222789,1714596640275,-167.0,0.00023218,2]
[325222791,1714596640284,-398.71722492,0.00023233,2]
[325222793,1714596640293,-983.34665686,0.00023345,2]
[325222795,1714596640303,-1000.0,0.00023362,2]
[325222797,1714596640312,-3838.43714493,0.000234,2]
[325222799,1714596640321,-7869.43084046,0.00023444,2]
[325222801,1714596640330,-400.0,0.00023494,2]
[325222803,1714596640339,-152.79873068,0.00023888,2]
[325222805,1714596640348,-167.0,0.00023895,2]
[325222807,1714596640358,-398.71722492,0.00023967,2]
[325222809,1714596640367,-155.0,0.00024,2]
[325222812,1714596640376,-829.05758702,0.00024,2]
[325222815,1714596640386,-153.74346245,0.00024341,2]
[325222817,1714596640395,-213.0,0.000244,2]
[325222819,1714596640404,-1759.43394311,0.000244,2]
[325222821,1714596640414,-150.0,0.000244,4]
[325222823,1714596640424,-150.0,0.00024531,3]
[325222825,1714596640434,-152.79873068,0.00024648,2]
[325222827,1714596640443,-398.71722492,0.00024701,2]
[325222829,1714596640452,-150.0,0.000249,4]
[325222831,1714596640461,-572.67268291,0.00025,7]
[325222833,1714596640472,-5003.38050409,0.00025,2]
[325222835,1714596640482,-904.40132654,0.00025,2]
[325222837,1714596640491,-150.66768681,0.00025064,2]
[325222839,1714596640500,-7869.43084046,0.00025186,2]
[325222841,1714596640510,-150.0,0.000254,4]
[325222843,1714596640519,-150.0,0.000254,2]
[325222845,1714596640528,-152.79873068,0.00025409,2]
[325222847,1714596640537,-398.71722492,0.00025434,2]
[325222849,1714596640547,-643.0,0.00025521,2]
[325222851,1714596640556,-150.0,0.00025522,2]
[325222853,1714596640565,-150.0,0.00025522,2]
[325222855,1714596640574,-200.0,0.00025522,2]
[325222857,1714596640583,-155.1537093,0.00025522,2]
[325222859,1714596640593,-200.0,0.00025792,2]
[325222861,1714596640602,-1000.0,0.00025792,2]
[325222863,1714596640612,-500.0,0.00025792,2]
[325222865,1714596640621,-200.0,0.00025792,2]
[325222867,1714596640630,-150.0,0.00025895,3]
[325222869,1714596640639,-150.0,0.000259,4]
[325222871,1714596640648,-983.34665686,0.00026072,2]
[325222873,1714596640658,-1469.86,0.00026134,15]
[325222875,1714596640667,-398.71722492,0.00026168,2]
[325222877,1714596640676,-152.79873068,0.0002617,2]
[325222879,1714596640685,-1085.53,0.00026186,2]
[325222881,1714596640694,-1000.0,0.00026282,2]
[325222883,1714596640704,-150.0,0.000264,5]
[325222885,1714596640713,-163.73388053,0.00026434,2]
[325222887,1714596640722,-164.97902,0.000265,5]
[325222889,1714596640732,-150.0,0.000269,5]
[325222891,1714596640741,-398.71722492,0.00026901,2]
[325222893,1714596640750,-152.79873068,0.00026931,2]
[325222895,1714596640759,-3338.71656259,0.00027,2]
[325222897,1714596640768,-155.0,0.00027,4]
[325222899,1714596640777,-150.0,0.00027,2]
[325222901,1714596640786,-150.0,0.00027,5]
[325222903,1714596640795,-150.0,0.00027259,3]
[325222905,1714596640805,-166.43933311,0.00027297,2]
[325222907,1714596640813,-7500.0,0.00027297,2]
[325222909,1714596640822,-300.0,0.00027397,2]
[325222911,1714596640831,-1000.0,0.00027397,2]
[325222913,1714596640840,-150.0,0.00027397,2]
[325222915,1714596640849,-7045.34,0.00027397,10]
[325222917,1714596640858,-5871.12,0.00027397,10]
[325222919,1714596640867,-150.0,0.000274,5]
[325222921,1714596640876,-150.0,0.000275,5]
[325222923,1714596640886,-155.0,0.0002755,30]
[325222925,1714596640895,-398.71722492,0.00027635,2]
[325222927,1714596640903,-152.79873068,0.00027692,2]
[325222929,1714596640913,-327.02,0.00027714,2]
[325222931,1714596640921,-153.03920342,0.00027839,2]
[325222933,1714596640931,-150.0,0.000279,5]
[325222935,1714596640940,-150.0,0.00028,5]
[325222937,1714596640952,-500.0,0.00028086,2]
[325222939,1714596640961,-500.0,0.00028086,2]
[325222941,1714596640971,-500.0,0.00028086,2]
[325222943,1714596640980,-500.0,0.00028086,2]
[325222945,1714596640990,-500.0,0.00028086,2]
[325222947,1714596640999,-500.0,0.00028086,2]
[325222950,1714596641009,-150.0,0.00028118,2]
[325222952,1714596641018,-1600.0,0.000283,10]
[325222953,1714596641027,-398.71722492,0.00028368,2]
[325222955,1714596641045,-189.050205,0.00028398,2]
[325222957,1714596641055,-3300.0,0.000284,10]
[325222959,1714596641065,-150.0,0.000284,5]
[325222961,1714596641074,-157.050205,0.00028498,2]
[325222964,1714596641083,-157.050205,0.00028498,2]
[325222966,1714596641093,-157.050205,0.00028498,2]
[325222967,1714596641102,-210.36911107,0.000285,2]
[325222970,1714596641111,-5000.0,0.000285,10]
[325222971,1714596641120,-150.0,0.000285,5]
[325222973,1714596641129,-36341.33132187,0.00028565,2]
[325222975,1714596641139,-150.0,0.00028571,2]
[325222977,1714596641148,-157.050205,0.00028598,2]
[325222979,1714596641157,-157.050205,0.00028598,2]
[325222982,1714596641166,-157.050205,0.00028598,2]
[325222984,1714596641175,-6600.0,0.000286,10]
[325222986,1714596641184,-150.0,0.00028623,3]
[325222988,1714596641193,-150.0,0.00028684,2]
[325222990,1714596641203,-157.050205,0.00028698,2]
[325222992,1714596641212,-157.050205,0.00028698,2]
[325222993,1714596641222,-157.050205,0.00028698,2]
[325223025,1714596641485,-8300.0,0.000287,10]
[325223027,1714596641506,-513.19183306,0.00028708,2]
[325223029,1714596641516,-155.0,0.0002871,2]
[325223031,1714596641525,-1000.0,0.00028767,2]
[325223034,1714596641535,-157.050205,0.00028798,2]
[325223036,1714596641544,-157.050205,0.00028798,2]
[325223038,1714596641553,-157.050205,0.00028798,2]
[325223040,1714596641563,-983.34665686,0.000288,2]
[325223042,1714596641571,-1600.0,0.000288,10]
[325223044,1714596641580,-150.0,0.00028839,2]
[325223046,1714596641589,-1000.0,0.00028898,2]
[325223048,1714596641598,-459.31210548,0.000289,2]
[325223050,1714596641607,-207.49945375,0.000289,2]
[325223052,1714596641616,-56834.30155556,0.000289,2]
[325223054,1714596641625,-161.46228048,0.000289,2]
[325223056,1714596641634,-833.1483276,0.000289,2]
[325223058,1714596641644,-1600.0,0.000289,10]
[325223060,1714596641652,-365.13159352,0.000289,5]
[325223062,1714596641661,-206.02178958,0.000289,2]
[325223064,1714596641670,-2886.30746626,0.000289,2]
[325223066,1714596641679,-150.0,0.000289,6]
[325223068,1714596641689,-2013.2810059,0.000289,2]
[325223070,1714596641697,-156.55480031,0.000289,2]
[325223072,1714596641706,-201.33969009,0.000289,2]
[325223074,1714596641717,-1042.77644673,0.000289,2]
[325223076,1714596641725,-565.72950613,0.000289,2]
[325223078,1714596641734,-833.1483276,0.00028951,2]
[325223080,1714596641743,-909.18,0.00028951,2]
[325223082,1714596641752,-150.0,0.00028951,2]
[325223084,1714596641762,-780.31,0.00028951,2]
[325223086,1714596641771,-303.26999854,0.00028986,2]
[325223088,1714596641780,-150.34,0.00028989,2]
[325223090,1714596641789,-150.34,0.00028989,2]
[325223092,1714596641798,-150.34,0.00028989,2]
[325223094,1714596641808,-303.26999854,0.00028989,2]
[325223096,1714596641816,-303.26999854,0.00028989,2]
[325223098,1714596641826,-150.34,0.0002899,2]
[325223100,1714596641835,-150.34,0.0002899,2]
[325223102,1714596641844,-150.34,0.0002899,2]
[325223104,1714596641854,-150.34,0.0002899,2]
[325223106,1714596641864,-150.34,0.0002899,2]
[325223108,1714596641874,-206.71506082,0.00028994,2]
[325223110,1714596641883,-370.1602085,0.00028994,2]
[325223112,1714596641891,-265.47853017,0.00028994,2]
[325223114,1714596641901,-236.58560073,0.00028994,2]
[325223116,1714596641910,-2216.45947127,0.00028994,2]
[325223118,1714596641919,-156.78451501,0.00028995,2]
[325223120,1714596641928,-162.16085686,0.00028995,2]
[325223122,1714596641938,-5544.56893449,0.00028996,2]
[325223124,1714596641948,-2994.81619962,0.00028996,2]
[325223126,1714596641960,-1468.68131399,0.00028996,2]
[325223128,1714596641971,-192.70495298,0.00028996,2]
[325223130,1714596641980,-342.3236686,0.00028996,2]
[325223132,1714596641990,-692.91209762,0.00028996,2]
[325223134,1714596641999,-232.32009674,0.00028996,2]
[325223136,1714596642010,-357.54964163,0.00028996,10]
[325223138,1714596642019,-404.6914497,0.00028996,2]
[325223140,1714596642028,-174.82212836,0.00028996,2]
[325223142,1714596642040,-155.24595245,0.00028996,2]
[325223144,1714596642050,-155.0,0.00028996,2]
[325223146,1714596642059,-215.81644921,0.00028996,2]
[325223148,1714596642068,-155.18518954,0.00028996,2]
[325223150,1714596642078,-215.94232495,0.00028996,2]
[325223152,1714596642087,-1059.66551773,0.00028996,2]
[325223154,1714596642097,-3888.2925546,0.00028996,2]
[325223156,1714596642105,-1351.89634566,0.00028996,2]
[325223158,1714596642114,-1993.17789297,0.00028996,2]
[325223160,1714596642123,-189.63225734,0.00028996,2]
[325223162,1714596642133,-1664.80071076,0.00028996,2]
[325223164,1714596642142,-780.95068505,0.00028996,2]
[325223166,1714596642151,-174.62077598,0.00028996,2]
[325223168,1714596642160,-12616.9131787,0.00028996,2]
[325223170,1714596642169,-409.12808028,0.00028996,2]
[325223172,1714596642178,-277.23297003,0.00028996,2]
[325223174,1714596642188,-5000.0,0.00028998,2]
[325223176,1714596642198,-316.45502724,0.00028998,2]
[325223178,1714596642207,-5852.08008115,0.00028998,2]
[325223180,1714596642218,-207.44215565,0.00028998,2]
[325223182,1714596642227,-211.01136995,0.00028999,2]
[325223184,1714596642236,-1219.69401357,0.00028999,15]
[325223186,1714596642245,-898.14039,0.00028999,2]
[325223188,1714596642254,-2688.58,0.00028999,3]
[325223190,1714596642263,-81512.77337823,0.00029,3]
[325223194,1714596642286,-343.625,0.00029,3]
[325223197,1714596642309,-302.5936972,0.00029,3]
[325223200,1714596642320,-727.3743122,0.00029,3]
[325223202,1714596642331,-2700.0,0.00029,3]
[325223262,1714596642921,-245.683,0.0001711,2]
[325223263,1714596642930,-150.0,0.0002011,2]
[325223264,1714596642939,-8857.38084494,0.00029,3]